bitfinex/quotes_ETHUSD_20250130
["timestamp","ask_amount","ask_price","bid_price","bid_amount"]
[1738261595798,3.05863,3269.5,3268.9,0.1648478]
[1738261595799,3.05877,3269.3,3268.9,0.1648478]
[1738261596213,3.05863,3269.5,3268.9,0.1648478]
[1738261596580,3.05867,3269.4,3268.9,0.1648478]
[1738261596798,3.05863,3269.5,3268.9,0.1648478]
[1738261597125,3.05863,3269.5,3268.9,5.5348478]
[1738261597420,3.05863,3269.5,3269.0,0.55]
[1738261598427,0.77,3269.9,3269.0,0.55]
[1738261598428,3.05867,3269.4,3269.0,0.55]
[1738261600428,3.05881,3269.3,3269.1,0.3057]
[1738261600728,3.05881,3269.3,3269.0,0.55]
[1738261601237,3.05893,3269.2,3268.9,5.5348478]
[1738261601391,3.05893,3269.2,3268.9,6.10207168]
[1738261601591,0.82464018,3269.1,3268.9,0.73207168]
[1738261601790,3.05997,3268.0,3267.4,10.32490873]
[1738261602013,0.794,3268.0,3267.4,5.37]
[1738261602218,3.06016,3267.8,3267.3,0.84974475]
[1738261602415,3.09090018,3267.7,3267.3,0.84974475]
[1738261602629,3.06026,3267.7,3267.3,0.84974475]
[1738261602788,0.794,3268.0,3267.3,0.84974475]
[1738261602789,3.06053,3267.4,3267.3,0.84974475]
[1738261603149,6.06053,3267.4,3267.3,0.84974475]
[1738261603336,6.86013,3267.4,3267.3,0.84974475]
[1738261603827,3.0,3267.3,3265.8,10.42199174]
[1738261604028,3.0614,3266.5,3265.8,8.41866569]
[1738261604227,3.06119,3266.7,3265.9,3.09253881]
[1738261604426,3.06119,3266.7,3265.9,3.06192]
[1738261604628,3.06133,3266.6,3265.8,11.48068569]
[1738261604793,3.06133,3266.6,3265.9,3.06193]
[1738261605327,3.06126,3266.7,3265.9,3.91141407]
[1738261605489,3.06138,3266.5,3265.9,0.84948407]
[1738261605684,3.06167,3266.2,3265.8,4.20937894]
[1738261606096,3.06149,3266.4,3265.8,4.20937894]
[1738261606431,6.06072,3267.2,3265.8,4.20937894]
[1738261606432,3.06091,3267.0,3266.4,0.55]
[1738261606951,3.06118,3266.8,3265.9,3.45077894]
[1738261607099,3.06157,3266.3,3265.9,3.45077894]
[1738261607494,0.03064018,3266.8,3265.5,4.25917894]
[1738261607495,3.06183,3266.1,3265.5,4.25917894]
[1738261608012,3.06158,3266.3,3265.5,4.25917894]
[1738261608445,3.06182,3266.1,3265.5,4.25917894]
[1738261608737,3.06182,3266.1,3265.7,0.15637471]
[1738261609143,3.06147,3266.4,3265.8,0.55]
[1738261609752,3.06168,3266.2,3265.8,0.55]
[1738261610246,6.06203,3265.8,3265.7,0.15637471]
[1738261610445,6.09267018,3265.8,3265.7,0.15637471]
[1738261610942,6.06203,3265.8,3265.7,0.15637471]
[1738261611242,0.48003098,3266.8,3265.7,0.15637471]
[1738261611243,0.8072,3266.5,3265.7,0.15637471]
[1738261611547,3.06144,3266.5,3265.8,0.55]
[1738261611702,3.06155,3266.4,3266.0,0.55]
[1738261612051,3.06154,3266.4,3266.0,0.55]
[1738261612226,3.0613,3266.6,3266.0,0.55]
[1738261612443,3.0612,3266.7,3266.0,0.55]
[1738261612614,3.06139,3266.5,3265.9,0.7721]
[1738261612798,3.06139,3266.5,3265.9,1.17115947]
[1738261613647,3.06139,3266.5,3265.9,0.7721]
[1738261613796,3.06128,3266.6,3265.9,0.7721]
[1738261614438,3.06154,3266.4,3265.9,0.7721]
[1738261614643,3.06128,3266.6,3265.9,0.7721]
[1738261614798,3.06165,3266.3,3265.9,0.7721]
[1738261614992,3.06182,3266.1,3265.9,0.7721]
[1738261615243,3.06182,3266.1,3265.7,0.15637471]
[1738261615796,3.062,3265.9,3265.7,0.15637471]
[1738261616019,0.75,3266.2,3265.7,0.15637471]
[1738261616214,3.06203,3265.8,3265.7,0.15637471]
[1738261616599,6.06203,3265.8,3265.7,0.15637471]
[1738261617956,10.31264912,3265.8,3265.7,0.15637471]
[1738261618120,10.28200894,3265.8,3265.7,0.15637471]
[1738261618540,10.49200894,3265.8,3265.7,0.15637471]
[1738261619843,10.28200894,3265.8,3265.7,0.15637471]
[1738261620045,10.49200894,3265.8,3265.7,0.15637471]
[1738261620508,10.27450894,3265.8,3265.7,0.15637471]
[1738261620851,6.82373,3265.8,3265.7,0.15637471]
[1738261621203,6.06203,3265.8,3265.7,0.15637471]
[1738261622455,6.10017018,3265.8,3265.7,0.15637471]
[1738261622950,6.93047018,3265.8,3265.7,0.15637471]
[1738261623158,6.89983,3265.8,3265.7,0.15637471]
[1738261623865,10.35060894,3265.8,3265.7,0.15637471]
[1738261625522,10.56060894,3265.8,3265.7,0.15637471]
[1738261625742,10.56060894,3265.8,3265.7,4.71e-06]
[1738261626256,3.06298,3264.8,3264.5,0.70100471]
[1738261626558,3.06307,3264.7,3264.5,0.70100471]
[1738261626757,3.06298,3264.8,3264.5,0.70100471]
[1738261627459,3.06308,3264.7,3264.5,0.70100471]
[1738261627661,3.06298,3264.8,3264.5,0.70100471]
[1738261629469,3.06306,3264.7,3264.5,0.70100471]
[1738261629628,3.06298,3264.8,3264.5,0.70100471]
[1738261630026,3.06281,3265.0,3264.5,0.70100471]
[1738261630241,3.06259,3265.3,3264.6,0.55]
[1738261630242,3.0627,3265.1,3264.6,0.55]
[1738261631151,3.0,3265.7,3264.5,0.70100471]
[1738261631353,3.03064018,3265.7,3264.5,0.70100471]
[1738261631553,3.89235,3265.8,3264.5,0.70100471]
[1738261631554,3.06287,3265.0,3264.6,0.55]
[1738261632080,3.06293,3264.9,3264.6,0.55]
[1738261633384,3.06271,3265.1,3264.5,0.70100471]
[1738261633585,3.06299,3264.8,3264.5,0.70100471]
[1738261634790,3.0635,3264.3,3263.6,0.8089]
[1738261634976,3.06428,3263.5,3263.0,0.15197013]
[1738261635147,3.06457,3263.1,3263.0,0.15197013]
[1738261635349,3.09518018,3263.2,3263.0,0.15197013]
[1738261635550,3.0642,3263.5,3262.6,3.87387]
[1738261635877,3.06411,3263.6,3262.9,3.06475]
[1738261636045,3.06375,3264.0,3263.3,0.55]
[1738261636245,3.06372,3264.0,3262.8,0.7769]
[1738261636456,3.06336,3264.4,3263.7,0.7769]
[1738261636656,3.06336,3264.4,3263.7,3.84088]
[1738261636882,3.06336,3264.4,3263.8,0.55]
[1738261637087,3.0,3264.5,3263.8,3.6139]
[1738261637247,3.06318,3264.6,3264.0,0.55]
[1738261637450,3.063,3264.8,3264.1,0.7769]
[1738261637652,3.06266,3265.2,3264.4,0.55]
[1738261637963,1.81367421,3265.3,3264.8,0.7769]
[1738261638986,1.81367421,3265.3,3265.0,3.06271]
[1738261639292,1.81367421,3265.3,3264.9,3.06047728]
[1738261639994,1.81367421,3265.3,3264.8,0.7769]
[1738261640174,4.87617421,3265.3,3264.8,0.7769]
[1738261640390,0.03064018,3265.2,3264.4,0.8283]
[1738261640694,0.03064018,3265.2,3263.3,3.06432]
[1738261640695,3.06365,3264.1,3263.3,3.06432]
[1738261640992,3.06365,3264.1,3263.1,3.89287]
[1738261641191,3.06343,3264.4,3263.1,0.8283]
[1738261641363,3.06363,3264.1,3263.2,3.06447]
[1738261641567,3.06363,3264.1,3263.4,3.06428]
[1738261642951,3.06335,3264.4,3263.7,0.55]
[1738261643153,3.06316,3264.6,3263.9,0.55]
[1738261643408,3.06317,3264.6,3263.9,0.55]
[1738261643861,3.06318,3264.6,3263.9,0.55]
[1738261644051,3.06337,3264.4,3263.9,0.55]
[1738261644303,3.06318,3264.6,3263.9,0.55]
[1738261644515,3.06326,3264.5,3263.9,0.55]
[1738261644717,3.06335,3264.4,3263.9,0.55]
[1738261644899,3.06335,3264.4,3264.0,0.28579208]
[1738261644900,6.52190894,3264.1,3264.0,0.28579208]
[1738261645069,6.28513,3264.1,3264.0,0.28579208]
[1738261646269,0.2488,3263.5,3263.1,0.28579208]
[1738261647010,0.2488,3263.5,3263.2,0.55]
[1738261647509,0.2488,3263.5,3263.1,0.55]
[1738261647813,0.2488,3263.5,3263.3,0.28582286]
[1738261648187,0.2488,3263.5,3263.4,0.55]
[1738261648514,0.2488,3263.5,3263.4,4.79720729]
[1738261649072,3.06365,3264.1,3263.4,5.08303015]
[1738261649568,3.06365,3264.1,3263.4,4.29013015]
[1738261649813,3.06327,3264.5,3263.8,0.55]
[1738261650012,6.12661,3264.5,3263.8,0.55]
[1738261650209,3.06339,3264.4,3263.8,0.55]
[1738261650419,3.06354,3264.2,3263.5,3.82475]
[1738261650713,3.06375,3264.0,3263.9,0.28582286]
[1738261651677,3.06375,3264.0,3263.6,0.28582286]
[1738261651879,3.06375,3264.0,3263.6,0.83582286]
[1738261652305,3.06362,3264.2,3263.6,0.83582286]
[1738261652306,0.8269,3264.3,3263.6,0.28582286]
[1738261652492,3.064,3263.7,3263.6,0.28582286]
[1738261653124,3.064,3263.7,3263.3,0.55]
[1738261654020,3.06411,3263.6,3263.3,0.55]
[1738261654321,3.06411,3263.6,3263.2,0.8235]
[1738261655035,3.06393,3263.8,3263.2,0.8235]
[1738261655036,3.06393,3263.8,3263.3,0.55]
[1738261655413,3.06393,3263.8,3263.4,0.3062]
[1738261655625,3.06393,3263.8,3263.3,0.55]
[1738261655931,3.06445,3263.3,3262.5,3.2299678]
[1738261656141,3.06445,3263.3,3262.6,0.804]
[1738261656336,3.8623,3263.7,3262.9,0.55]
[1738261656688,3.06427,3263.5,3262.9,0.55]
[1738261657031,3.06386,3263.9,3263.1,0.8054]
[1738261657234,3.0,3264.2,3263.2,0.55]
[1738261657235,6.06362,3264.2,3263.2,0.55]
[1738261657417,3.06389,3263.9,3263.2,0.55]
[1738261657615,3.06389,3263.9,3263.2,0.83571998]
[1738261657934,3.06377,3264.0,3263.2,0.83571998]
[1738261658107,3.06393,3263.8,3263.2,0.83571998]
[1738261658461,3.06428,3263.5,3263.2,0.83571998]
[1738261659089,3.06404,3263.7,3263.2,0.55]
[1738261659725,3.06422,3263.5,3263.1,0.8054]
[1738261659928,3.06425,3263.5,3263.1,0.8054]
[1738261660605,3.06401,3263.7,3263.2,0.55]
[1738261661428,3.06384,3263.9,3263.2,0.55]
[1738261661638,3.06391,3263.8,3263.2,0.55]
[1738261661789,3.83341,3264.3,3263.6,0.55]
[1738261661991,3.06326,3264.5,3263.7,1.304]
[1738261662254,3.06347,3264.3,3263.7,1.304]
[1738261663337,3.84419,3264.7,3263.7,4.36794]
[1738261663538,3.84419,3264.7,3264.0,0.55]
[1738261663539,3.06322,3264.6,3264.0,0.55]
[1738261663746,3.09398018,3264.5,3264.1,0.8326]
[1738261663898,3.45077894,3264.9,3263.9,0.55]
[1738261664092,3.06331,3264.5,3263.9,0.55]
[1738261664332,3.06336,3264.4,3263.9,0.55]
[1738261664748,3.06345,3264.3,3263.9,0.55]
[1738261664946,3.06363,3264.1,3263.8,0.8326]
[1738261666002,3.06345,3264.3,3263.8,0.8326]
[1738261666205,6.12698,3264.3,3263.8,0.8326]
[1738261666419,3.06345,3264.3,3263.8,0.8326]
[1738261666945,3.85299,3264.5,3263.8,0.8326]
[1738261667144,3.06345,3264.3,3263.8,0.8326]
[1738261667303,3.06329,3264.5,3263.9,0.55]
[1738261667693,6.12621,3264.7,3263.9,3.6138]
[1738261667899,3.06291,3264.9,3264.2,0.7844]
[1738261668130,3.06322,3264.6,3264.3,0.2]
[1738261668315,3.06306,3264.7,3264.3,0.2]
[1738261668525,3.06301,3264.8,3264.3,0.2]
[1738261668843,6.12645,3264.6,3264.3,0.2]
[1738261669145,3.06332,3264.5,3264.3,0.2]
[1738261670062,3.06332,3264.5,3264.1,0.55]
[1738261670263,3.06322,3264.6,3264.1,0.55]
[1738261670675,3.06308,3264.7,3264.1,0.55]
[1738261670970,3.09386018,3264.6,3264.1,0.55]
[1738261671469,3.06335,3264.4,3264.0,0.7844]
[1738261671672,3.09399018,3264.4,3263.7,1.3581]
[1738261671837,2.86335,3264.4,3263.7,1.3581]
[1738261672035,5.92679,3264.4,3263.7,4.42209]
[1738261672361,5.95743018,3264.4,3263.7,4.42209]
[1738261672546,0.8096,3264.5,3263.7,4.42209]
[1738261672750,0.8096,3264.5,3263.9,0.55]
[1738261672751,3.06331,3264.5,3263.9,0.55]
[1738261673559,3.06358,3264.2,3263.7,0.8081]
[1738261673760,3.09422018,3264.2,3263.7,0.8081]
[1738261674078,3.09422018,3264.2,3263.8,0.55]
[1738261674759,3.06358,3264.2,3263.7,0.8081]
[1738261675697,3.06366,3264.1,3263.7,0.8081]
[1738261675838,6.1272,3264.2,3263.7,0.8081]
[1738261676576,3.06358,3264.2,3263.7,0.8081]
[1738261677102,3.06321,3264.6,3263.9,0.55]
[1738261677518,6.12645,3264.6,3263.9,0.55]
[1738261678016,3.63672439,3264.8,3262.1,0.3062]
[1738261678017,3.8257,3264.5,3262.1,0.3062]
[1738261678300,5.92199439,3263.4,3262.7,0.8082]
[1738261678453,3.06448,3263.2,3262.7,0.8082]
[1738261679805,3.06448,3263.2,3262.8,0.55]
[1738261680157,3.06459,3263.1,3262.8,0.55]
[1738261680555,6.94408,3263.5,3262.7,0.8082]
[1738261680796,3.06446,3263.3,3262.5,0.1648478]
[1738261680992,3.0648,3262.9,3262.5,0.1648478]
[1738261681154,3.06504,3262.6,3262.5,0.1648478]
[1738261681803,3.84704,3262.6,3262.5,0.1648478]
[1738261682394,6.53067549,3262.8,3262.5,0.1648478]
[1738261682395,3.06487,3262.8,3262.5,0.1648478]
[1738261682564,3.06452,3263.2,3262.6,0.7966]
[1738261682756,3.06451,3263.2,3262.7,0.55]
[1738261682961,6.52993549,3263.6,3262.7,0.55]
[1738261683200,3.06424,3263.5,3262.9,0.55]
[1738261683404,6.52993549,3263.6,3262.9,0.55]
[1738261683761,3.06422,3263.5,3262.9,0.55]
[1738261683992,3.06422,3263.5,3262.9,3.61474]
[1738261684401,3.06395,3263.8,3263.1,1.3134]
[1738261684612,3.06398,3263.8,3263.3,0.55]
[1738261685220,3.06376,3264.0,3263.3,0.55]
[1738261685520,3.46580549,3264.4,3263.6,4.43237]
[1738261685521,3.06361,3264.2,3263.6,4.43237]
[1738261685748,3.06361,3264.2,3263.5,3.06418]
[1738261685749,3.06443,3263.3,3262.5,0.1648478]
[1738261686014,3.06453,3263.2,3262.6,0.8188]
[1738261686222,6.53011549,3263.4,3262.7,3.46981778]
[1738261686421,3.46580549,3263.4,3262.9,3.06473]
[1738261686620,3.06419,3263.5,3262.9,3.0647]
[1738261686919,3.06419,3263.5,3262.7,3.46977778]
[1738261686920,3.06414,3263.6,3263.1,0.55]
[1738261687280,3.06419,3263.5,3263.1,0.55]
[1738261687509,3.06414,3263.6,3263.1,0.55]
[1738261688014,3.06387,3263.9,3263.3,0.55]
[1738261688174,3.06374,3264.0,3263.3,0.55]
[1738261688381,3.06374,3264.0,3263.5,1.3265]
[1738261688579,3.46580549,3264.2,3263.5,4.39067]
[1738261688781,3.06363,3264.1,3263.5,5.136172]
[1738261689009,3.06373,3264.0,3263.5,2.072002]
[1738261689722,0.03064018,3264.1,3263.5,2.072002]
[1738261689930,3.06359,3264.2,3263.6,0.55]
[1738261690534,3.49644567,3264.1,3263.5,0.7765]
[1738261690693,3.06406,3263.7,3263.1,0.7964]
[1738261691024,0.03064018,3263.6,3263.1,3.7964]
[1738261691182,3.06406,3263.7,3263.1,0.7964]
[1738261691383,3.06384,3263.9,3263.2,0.55]
[1738261691598,6.12772,3263.9,3263.2,0.55]
[1738261692216,3.06384,3263.9,3263.2,4.662024]
[1738261692436,0.03064018,3263.8,3263.1,0.7964]
[1738261692640,3.06425,3263.5,3263.1,0.7964]
[1738261693162,3.06403,3263.7,3263.2,0.55]
[1738261693310,3.064,3263.8,3263.2,0.55]
[1738261693500,3.06406,3263.7,3263.2,0.55]
[1738261693842,3.06444,3263.3,3263.1,0.7964]
[1738261694204,3.06444,3263.3,3262.8,0.7729]
[1738261694403,3.06444,3263.3,3262.9,0.55]
[1738261695034,3.0643,3263.4,3262.9,0.55]
[1738261695307,3.0645,3263.2,3262.9,0.55]
[1738261695543,0.03064018,3263.1,3262.9,0.55]
[1738261695727,0.03064018,3263.1,3262.9,0.12661299]
[1738261695918,3.0645,3263.2,3262.8,0.7729]
[1738261696118,0.03064018,3263.1,3262.8,0.7729]
[1738261696553,3.0645,3263.2,3262.8,0.7729]
[1738261696940,3.06461,3263.1,3262.8,0.7729]
[1738261697465,3.06467,3263.0,3262.5,0.9190478]
[1738261697968,3.0645,3263.2,3262.5,0.9190478]
[1738261698134,3.0645,3263.2,3262.6,3.06495]
[1738261698509,3.06433,3263.4,3262.7,3.06491]
[1738261698710,3.06428,3263.5,3262.8,3.06484]
[1738261699151,3.06402,3263.7,3263.0,3.06462]
[1738261699454,3.0642,3263.5,3262.9,1.3607]
[1738261700552,3.0642,3263.5,3262.9,4.42537]
[1738261700723,3.0641,3263.6,3263.0,3.06462]
[1738261701755,3.0643,3263.4,3262.9,1.3607]
[1738261702356,0.03064018,3263.3,3262.9,1.3607]
[1738261703554,3.06457,3263.1,3262.9,0.8107]
[1738261703760,3.06457,3263.1,3262.6,0.8079]
[1738261705721,2.85967366,3263.6,3262.7,0.55]
[1738261705922,3.0643,3263.4,3262.8,3.06483]
[1738261706458,3.0643,3263.4,3262.7,0.55]
[1738261706621,3.06439,3263.3,3262.7,0.55]
[1738261706821,3.06451,3263.2,3262.7,0.55]
[1738261707218,3.06463,3263.1,3262.6,0.8079]
[1738261708060,3.0643,3263.4,3262.8,3.06479]
[1738261708427,3.06453,3263.2,3262.6,3.87288]
[1738261708643,3.06453,3263.2,3262.6,0.8079]
[1738261708959,3.0646,3263.1,3262.7,0.55]
[1738261709168,3.06477,3262.9,3262.6,0.8079]
[1738261709661,3.06504,3262.6,3262.5,0.1648478]
[1738261710042,3.85718018,3262.6,3262.5,0.1648478]
[1738261710531,3.82654,3262.6,3262.5,0.1648478]
[1738261712872,3.06504,3262.6,3262.5,0.1648478]
[1738261715226,3.09568018,3262.6,3262.5,0.1648478]
[1738261715628,3.10318018,3262.6,3262.5,0.1648478]
[1738261715830,3.89488018,3262.6,3262.5,0.1648478]
[1738261716634,3.88738018,3262.6,3262.5,0.1648478]
[1738261716959,3.82984018,3262.6,3261.1,0.005]
[1738261717154,3.06635,3261.2,3261.1,0.005]
[1738261717325,3.06625,3261.4,3261.1,0.005]
[1738261717539,3.06626,3261.3,3261.1,0.005]
[1738261718138,3.06635,3261.2,3261.1,0.005]
[1738261719160,3.06635,3261.2,3260.7,0.7136]
[1738261719670,3.06625,3261.4,3260.7,4.158466]
[1738261719981,3.06608,3261.5,3260.8,0.55]
[1738261720138,5.92569366,3261.6,3260.8,3.61667]
[1738261720339,3.06609,3261.5,3260.8,3.61667]
[1738261720663,3.06624,3261.4,3260.8,0.55]
[1738261720865,5.92569366,3261.6,3260.8,3.61673]
[1738261721170,8.99175366,3261.6,3260.8,3.61673]
[1738261721557,2.85967366,3261.6,3260.7,0.7136]
[1738261721759,3.06607,3261.5,3260.9,3.06663]
[1738261721960,3.06607,3261.5,3260.7,0.7136]
[1738261721961,3.06607,3261.5,3260.8,0.55]
[1738261722372,3.06642,3261.2,3260.7,0.7136]
[1738261722564,2.85967366,3261.3,3260.7,0.7136]
[1738261722884,3.06654,3261.0,3260.3,0.7749]
[1738261723179,3.06686,3260.7,3260.3,0.7749]
[1738261723486,3.06665,3260.9,3260.3,0.7749]
[1738261724386,3.06675,3260.8,3260.3,0.7749]
[1738261725287,3.06684,3260.7,3260.3,0.7749]
[1738261725493,0.03064018,3260.9,3260.3,0.7749]
[1738261725782,3.88944,3260.6,3260.0,0.7755]
[1738261726212,3.88944,3260.6,3259.8,3.06766]
[1738261726213,3.06719,3260.4,3259.8,3.06766]
[1738261726707,3.06708,3260.5,3259.9,0.8128]
[1738261726921,3.88942,3260.6,3259.9,0.8128]
[1738261727127,3.06729,3260.2,3259.9,0.8128]
[1738261727336,3.06713,3260.4,3259.6,0.8128]
[1738261727337,3.09803018,3260.1,3259.6,0.8128]
[1738261727648,3.06739,3260.1,3259.6,0.8128]
[1738261728302,3.06748,3260.0,3259.6,0.8128]
[1738261729130,6.13505,3260.0,3259.6,0.8128]
[1738261729315,3.06764,3259.9,3259.6,0.7628]
[1738261730253,3.06764,3259.9,3259.2,3.2330478]
[1738261730575,3.06795,3259.5,3259.2,0.1648478]
[1738261730876,3.09859018,3259.5,3259.2,0.1648478]
[1738261731017,3.06812,3259.4,3259.2,0.1648478]
[1738261731214,3.09878018,3259.3,3259.2,0.1648478]
[1738261731430,3.92838018,3259.3,3259.2,0.1648478]
[1738261731865,3.89774,3259.3,3259.2,0.1648478]
[1738261732061,3.06814,3259.3,3259.2,0.1648478]
[1738261733407,3.06814,3259.3,3259.1,1e-05]
[1738261733408,6.89373,3259.2,3259.1,1e-05]
[1738261733523,9.96840366,3259.2,3259.1,1e-05]
[1738261733717,9.75340366,3259.2,3259.1,1e-05]
[1738261733957,6.75340366,3259.2,3259.1,1e-05]
[1738261734765,5.92766366,3259.5,3259.1,1e-05]
[1738261734948,3.06823,3259.2,3259.1,1e-05]
[1738261735150,5.92790366,3259.2,3259.1,1e-05]
[1738261735726,5.95854384,3259.2,3259.1,1e-05]
[1738261736426,5.92790366,3259.2,3259.1,1e-05]
[1738261736954,5.92766366,3259.5,3259.1,1e-05]
[1738261737178,2.85967366,3259.5,3259.1,1e-05]
[1738261737512,5.92736366,3259.8,3259.1,3.06832]
[1738261737712,3.67278226,3260.0,3259.3,3.06811]
[1738261737996,3.06759,3259.9,3259.3,3.06811]
[1738261738294,3.06759,3259.9,3259.1,3.75939]
[1738261738295,3.06759,3259.9,3259.1,0.69108]
[1738261738601,2.85967366,3259.8,3259.2,3.0682]
[1738261738895,3.67282226,3260.0,3259.3,3.0681]
[1738261739102,3.0676,3259.9,3259.2,3.0682]
[1738261739255,3.06769,3259.8,3259.2,3.0682]
[1738261740196,3.09833018,3259.8,3259.1,3.06834]
[1738261740347,6.74031226,3260.0,3259.1,3.06826]
[1738261740545,3.06761,3259.9,3259.2,3.06816]
[1738261741299,0.60526226,3260.0,3259.4,3.06796]
[1738261741497,3.06769,3259.8,3259.2,0.7715]
[1738261741807,3.0676,3259.9,3259.2,0.7715]
[1738261742812,3.67282226,3260.0,3259.2,0.7715]
[1738261742813,0.60526226,3260.0,3259.6,3.06783]
[1738261742957,3.06718,3260.4,3259.9,0.7715]
[1738261743149,3.68067366,3260.5,3259.9,3.83901]
[1738261743398,0.61365366,3260.5,3259.9,3.83901]
[1738261743699,0.03064018,3260.4,3259.9,0.7715]
[1738261743911,2.85967366,3260.5,3259.9,3.83907]
[1738261744109,5.92642366,3260.8,3260.1,3.06729]
[1738261744253,5.92644366,3260.8,3260.0,3.0674]
[1738261744455,3.06683,3260.7,3260.0,3.0674]
[1738261744731,3.06684,3260.7,3260.1,3.06733]
[1738261745002,3.09757018,3260.6,3259.9,3.839]
[1738261745195,5.92642366,3260.8,3259.9,3.839]
[1738261745399,5.92642366,3260.8,3260.1,3.06735]
[1738261746018,0.03064018,3260.7,3260.0,0.55]
[1738261746202,3.09752018,3260.7,3260.0,3.61746]
[1738261746662,5.92642366,3260.8,3260.1,3.06737]
[1738261746863,5.95706384,3260.8,3260.1,3.06737]
[1738261747064,3.06692,3260.6,3260.0,3.61748]
[1738261747264,5.92642366,3260.8,3260.0,3.61748]
[1738261747465,3.06675,3260.8,3260.0,4.363141]
[1738261747711,3.06675,3260.8,3260.1,3.06736]
[1738261748016,0.61411128,3260.9,3260.5,0.7745]
[1738261748365,2.85967366,3261.1,3260.5,0.7745]
[1738261748567,3.06655,3261.0,3260.5,0.7745]
[1738261749011,5.92619366,3261.1,3260.5,0.7745]
[1738261749215,3.06632,3261.3,3260.6,3.61684]
[1738261749417,3.06626,3261.3,3260.6,3.61684]
[1738261749779,3.06626,3261.3,3260.7,0.7749]
[1738261749982,3.06626,3261.3,3260.7,3.84172]
[1738261750195,3.06626,3261.3,3260.7,0.7749]
[1738261750967,2.85967366,3261.7,3260.8,3.06672]
[1738261751322,0.03064018,3261.6,3260.8,0.7841]
[1738261751520,3.06629,3261.3,3260.8,0.7841]
[1738261751922,6.1322,3261.5,3260.8,0.7841]
[1738261752110,3.0,3262.2,3260.8,3.8508]
[1738261752319,3.06582,3261.8,3260.8,0.7841]
[1738261752499,3.06604,3261.6,3261.0,3.06653]
[1738261752697,3.09668018,3261.6,3260.9,0.55]
[1738261752899,3.06582,3261.8,3260.9,0.55]
[1738261752900,0.03064018,3261.5,3260.9,0.55]
[1738261753100,3.06604,3261.6,3260.9,3.6166]
[1738261753724,0.03064018,3261.5,3260.9,0.55]
[1738261753939,3.09672018,3261.5,3260.9,0.55]
[1738261754147,0.03064018,3261.5,3260.8,0.7841]
[1738261754286,3.06616,3261.4,3260.8,0.7841]
[1738261754489,3.0667,3260.9,3260.4,0.7557]
[1738261754688,3.0667,3260.9,3260.3,0.47438665]
[1738261754689,3.0671,3260.4,3260.3,0.47438665]
[1738261755194,5.92633366,3260.9,3260.3,0.47438665]
[1738261755195,6.13413,3260.5,3260.3,0.47438665]
[1738261755403,3.0671,3260.4,3260.3,0.47438665]
[1738261755602,3.85164018,3260.4,3260.3,0.47438665]
[1738261755832,3.821,3260.4,3260.3,0.47438665]
[1738261756088,3.06751,3260.0,3259.5,0.7507]
[1738261756243,3.0677,3259.8,3259.5,0.7507]
[1738261756746,3.06751,3260.0,3259.5,0.7507]
[1738261756747,3.06763,3259.9,3259.5,0.7507]
[1738261757251,3.06768,3259.8,3259.5,0.7507]
[1738261758461,3.06751,3260.0,3259.5,0.7507]
[1738261758762,3.06767,3259.8,3259.1,3.06827]
[1738261759315,3.06779,3259.7,3259.1,1e-05]
[1738261759563,3.06793,3259.6,3259.1,1e-05]
[1738261759763,3.06767,3259.8,3259.1,3.06831]
[1738261759965,3.06767,3259.8,3259.1,6.13657]
[1738261760465,3.06774,3259.8,3259.1,3.06827]
[1738261760620,6.13549,3259.8,3259.1,3.06827]
[1738261760821,3.06774,3259.8,3259.1,3.06827]
[1738261761021,0.03064018,3259.7,3259.1,1e-05]
[1738261761221,3.06792,3259.6,3259.1,1e-05]
[1738261761553,3.06808,3259.4,3259.1,1e-05]
[1738261761752,3.06817,3259.3,3259.1,1e-05]
[1738261761958,0.03064018,3259.2,3259.1,1e-05]
[1738261762150,3.06796,3259.5,3259.1,1e-05]
[1738261762368,3.06805,3259.4,3259.1,1e-05]
[1738261763015,3.06794,3259.6,3259.1,1e-05]
[1738261763664,3.06784,3259.7,3259.1,1e-05]
[1738261763817,3.06767,3259.8,3259.1,1e-05]
[1738261764017,3.0677,3259.8,3259.1,1e-05]
[1738261764255,3.06784,3259.7,3259.1,1e-05]
[1738261764412,0.7763,3260.0,3259.2,3.06816]
[1738261764413,3.84385,3260.0,3259.2,3.06816]
[1738261764621,0.8128,3260.3,3259.3,0.7804]
[1738261764826,3.06768,3259.8,3259.3,0.7804]
[1738261766542,3.06751,3260.0,3259.3,0.7804]
[1738261766858,3.06758,3259.9,3259.3,1.165264]
[1738261767063,3.06751,3260.0,3259.3,1.165264]
[1738261767561,3.06764,3259.9,3259.3,0.7804]
[1738261769566,3.06768,3259.8,3259.3,0.7804]
[1738261769770,3.06764,3259.9,3259.3,0.7804]
[1738261770367,3.0677,3259.8,3259.3,0.7804]
[1738261770530,3.06764,3259.9,3259.3,0.7804]
[1738261771677,3.67247366,3260.3,3259.1,1e-05]
[1738261771678,3.06722,3260.3,3259.6,0.55]
[1738261771882,3.06689,3260.7,3260.0,3.06742]
[1738261772082,3.06689,3260.7,3259.4,5.92767366]
[1738261772083,0.8055,3261.5,3260.3,2.85967366]
[1738261772392,0.8055,3261.5,3260.8,3.84087]
[1738261772393,3.06611,3261.5,3260.8,3.84087]
[1738261772581,3.06611,3261.5,3260.8,0.7742]
[1738261772582,3.06617,3261.4,3260.8,0.7742]
[1738261772760,3.06654,3261.1,3260.8,0.7742]
[1738261772961,3.66517366,3261.9,3260.8,0.7742]
[1738261772962,3.06614,3261.5,3260.8,0.7742]
[1738261773144,3.06605,3261.6,3260.8,0.7742]